{"text_format":"1","workbook":"xlsx","n_sheets":5,"sheets":["入力シート (見本)","入力シート","出力シート","参考明細書（地盤外注用）","参考明細書"],"not_rendered":{"charts":0,"images":2,"macros":1,"external_links":24,"defined_names":807,"comments":5,"pivot_tables":0},"unopened":[],"bounds":{"document_bytes":16777216,"sheet_cells":100000,"rows_first":2000,"rows_last":500,"rows_between":2000,"halvings":0,"cell_chars":16384,"cell_head_chars":4096},"cells_cut":0,"cells_raw":0,"read":"whole","date_system":"1900"}

{"sheet":"入力シート (見本)","index":0,"n_rows":43,"n_cols":55,"rows_kept":43,"cut":false,"hidden":false,"merged":[[7,7,7,8],[7,19,7,23],[0,0,0,4],[4,13,4,20],[4,25,4,34],[6,8,6,15],[6,29,6,34],[2,0,4,0],[8,8,8,11],[8,17,8,34],[9,17,9,32],[10,8,10,14],[10,17,10,31],[10,33,10,34],[11,17,11,20],[11,21,11,27],[11,28,11,29],[11,30,11,34],[12,17,13,20],[12,21,13,34],[15,10,15,34],[16,10,16,34],[17,10,17,12],[17,17,17,20],[17,21,17,27],[17,29,17,34],[18,10,18,12],[18,17,18,20],[18,21,18,29],[19,10,19,12],[19,17,19,20],[19,21,19,34],[24,10,24,34],[25,10,25,34],[20,10,20,12],[20,17,20,20],[21,8,23,8],[21,10,21,11],[21,12,21,15],[21,19,21,33],[22,10,22,11],[22,12,22,15],[22,19,22,33],[23,10,23,11],[23,12,23,15],[23,19,23,33]]}
["標準見積書入力シート（見本）\n\n「入力項目」を入力してください。\n尚、画面右側の出力イメージで、見積書（表紙）の表示状況の確認ができます。",null,null,null,null,null,null,"印刷イメージ（見積書表紙）",null,null,null,null,null,null,null,null,null,null,null,null,null,null,null,null,null,null,null,null,null,null,null,null,null,null,null,null,null,null,null,null,null,null,null,null,null,null,null,null,null,null,null,null,null,null," "]
["No.","項目①","項目②","入力項目","チェック","説明"]
[1,"基本情報","見積日（年）【西暦】",2019,{"$f":"IF(D3>0,\"\",\"見積日（年）を西暦で入力してください。\")","v":""},"見積日（年）を西暦で入力してください。"]
[null,null,"見積日（月）",1,{"$f":"IF(D4>0,\"\",\"見積日（月）を入力してください。\")","v":""},"見積日（月）を入力してください。"]
[null,null,"見積日（日）",7,{"$f":"IF(D5>0,\"\",\"見積日（日）を入力してください。\")","v":""},"見積日（日）を入力してください。",null,null,null,null,null,null,null,"見      積      書 ",null,null,null,null,null,null,null,null,null,null,null,{"$f":"IF(D4>0,VALUE(CONCATENATE(D3,\"/\",D4,\"/\",D5)),\"20●●年●月●日\")","v":"2019-01-07"}]
[2,"見積書提出先","JV名","○○○○○共同企業体",{"$f":"IF(D6>0,\"\",\"JVの場合は入力してください。\")","v":""},"ＪＶ工事の場合のみＪＶ名を記入して下さい"]
[3,null,"JV構成","代表者",{"$f":"IF(D7>0,\"\",\"JVの場合に代表者等を入力してください。\")","v":""},"ＪＶ工事の場合のみ代表者or構成員を選択してください。",null,null,{"$f":"D6","v":"○○○○○共同企業体"},null,null,null,null,null,null,null,null,null,null,null,null,null,null,null,null,null,null,null,"取引先コード","01234567"]
[4,"見積書作成会社","取引先コード",{"$f":"AD7","v":"01234567"},{"$f":"IF(D8>0,\"\",\"取引先コードを取得済の場合は入力してください。\")","v":""},"過去に取引実績のある場合は取引先コード（8桁）を入力してください。（新規の場合は不要です。）",null,{"$f":"D7","v":"代表者"},null,null,null,null,null,null,null,null,"請負者",null,"〒","=D9"]
[5,null,"会社名","株式会社 ○○○○",{"$f":"IF(D9>0,\"\",\"見積作成会社を入力してください。\")","v":""},"見積書の作成会社名を省略せずに入力してください。",null,null,"株式会社ソイルテクニカ",null,null,null,null,"御中",null,null,null,{"$f":"D12","v":"○○県○○市○○町○-○"}]
[6,null,"代表者名","代表取締役 ○○○○",{"$f":"IF(D10>0,\"\",\"見積作成会社の代表者名を入力してください。\")","v":""},"見積提出者の代表者を入力してください。",null,null,null,null,null,null,null,null,null,null,null,{"$f":"D9","v":"株式会社 ○○○○"}]
[7,null,"郵便番号","111-1111",{"$f":"IF(D11>0,\"\",\"郵便番号を入力してください。\")","v":""},"郵便番号を入力してください。",null,null,"　　　 下記の通り見積り申し上げます。",null,null,null,null,null,null,null,null,{"$f":"D10","v":"代表取締役 ○○○○"},null,null,null,null,null,null,null,null,null,null,null,null,null,null,"㊞"]
[8,null,"住所","○○県○○市○○町○-○",{"$f":"IF(D12>0,\"\",\"住所を入力してください。\")","v":""},"住所を入力してください。",null,null,null,null,null,null,null,null,null,null,null,"電話番号",null,null,null,{"$f":"D13","v":"11-1111-1111"},null,null,null,null,null,null,"担当者",null,{"$f":"D14","v":"○○○○"}]
[9,null,"電話番号","11-1111-1111",{"$f":"IF(D13>0,\"\",\"電話番号を入力してください。\")","v":""},"本見積書に関する問い合わせ先の電話番号を入力してください。",null,null,null,null,null,null,null,null,null,null,null,"e-mail：",null,null,null,{"$f":"D15","v":"○○○○@○○○○"}]
[10,null,"担当者名","○○○○",{"$f":"IF(D14>0,\"\",\"担当者名を入力してください。\")","v":""},"本見積書に関する担当者を入力してください。"]
[11,null,"e-mail","○○○○@○○○○",{"$f":"IF(D15>0,\"\",\"担当者のe-mailを入力してください。\")","v":""},"担当者のメールアドレスを入力してください。"]
[12,"工事情報","工事名","○○○○工事",{"$f":"IF(D16>0,\"\",\"工事名を入力してください。\")","v":""},"工事名を入力してください。",null,null,"工事名",null,{"$f":"D16","v":"○○○○工事"}]
[13,null,"工事場所","○○県○○市○○地内",{"$f":"IF(D17>0,\"\",\"工事場所を入力してください。\")","v":""},"工事場所の住所を市区町村まで入力してください。",null,null,"工事場所",null,{"$f":"D17","v":"○○県○○市○○地内"}]
[14,"見積情報","工期/納期（開始日）","2017-04-05",{"$f":"IF(D18>0,IF(G18<=0,\"見積日との整合OK\",\"開始日が見積日よりも前の日付になっています。\"),\"工期/納期（開始日）を入力してください。\")","v":"見積日との整合OK"},"工期または納期開始予定日を西暦で入力してください。",{"$f":"D3-D18","v":-40811},null,"見積金額",null,{"$f":"D22","v":1000000},null,null,null,null,null,null,"工期",null,null,null,{"$f":"D18","v":"2017-04-05"},null,null,null,null,null,null,"～",{"$f":"D19","v":"2017-04-20"}]
[15,null,"工期/納期（終了日）","2017-04-20",{"$f":"IF(D19>0,IF(G19>=0,\"見積開始日との整合OK\",\"工期/納期終了日が開始日より前の日付になっています。\"),\"工期/納期（終了日）を入力してください。\")","v":"見積開始日との整合OK"},"工期または納期終了予定日を西暦で入力してください。",{"$f":"D19-D18","v":15},null,"消費税額",null,{"$f":"D23","v":80000},null,null,null,null,null,null,"見積有効期間",null,null,null,{"$f":"D20","v":"2017-06-30"},null,null,null,null,null,null,null,null,"まで"]
[16,null,"見積有効期限","2017-06-30",{"$f":"IF(D20>0,IF(G20>=0,\"工期/納期との整合OK\",\"見積有効期限が工期/納期の終了日より前の日付になっています。\"),\"見積有効期限を入力してください。\")","v":"工期/納期との整合OK"},"見積有効期限を記入してください。",{"$f":"D20-D19","v":71},null,"合計",null,{"$f":"D24","v":1080000},null,null,null,null,null,null,"支払条件",null,null,null,{"$f":"D21","v":"株式会社ソイルテクニカの支払基準による"}]
[17,null,"支払条件","株式会社ソイルテクニカの支払基準による","-","プルダウンから選択してください。",null,null,"うち法定福利費",null,{"$f":"D25","v":75000}]
[19,null,"見積金額",1000000,{"$f":"IF(D22>0,\"見積金額が内訳書の合計と合致していることを確認してください。\",\"税抜の見積金額を入力してください。\")","v":"見積金額が内訳書の合計と合致していることを確認してください。"},"見積金額を入力してください。",null,null,"社会保険\n加入状況",null,"健康保険番号：",null,{"$f":"D26","v":"○○○○"},null,null,null,"確認書類：",null,null,{"$f":"D27","v":"書面（写）"}]
[20,null,"消費税額",{"$f":"IF(ISBLANK(D22*0.08),\"\",D22*0.08)","v":80000},"消費税額が適切な金額になっているか確認してください。","8%で自動計算されますが、見積書と相違している場合は修正してください。",null,null,null,null,"厚生年金番号：",null,{"$f":"D28","v":"○○○○"},null,null,null,"確認書類：",null,null,{"$f":"D29","v":"書面（写）"}]
[21,null,"合計",{"$f":"SUM(D22:D23)","v":1080000},"合計が見積書の金額と合致していることを確認してください。","見積金額と消費税の合計額が自動計算されます。",null,null,null,null,"雇用保険番号：",null,{"$f":"D30","v":"○○○○"},null,null,null,"確認書類：",null,null,{"$f":"D31","v":"書面（写）"}]
[22,null,"うち法定福利費",75000,{"$f":"IF(D25>0,\"\",\"労務費が含まれている場合は、法定福利費を入力してください。\")","v":""},"見積金額に含まれる法定福利費の金額を、内数として入力してください。目安は労務費総額の15%となります。",null,null,"見積条件",null,"別紙明細通り"]
[23,"社会保険","健康保険番号","○○○○",{"$f":"IF(D26>0,\"\",\"健康保険番号を入力してください。\")","v":""},"健康保険の加入番号を記入してください。"]
[24,null,"　確認書類","書面（写）",{"$f":"IF(D27=\"経営事項審査通知書（写）\",\"経営事項審査通知書を添付してください。\",\"納付書等の確認書類を添付してください。\")","v":"納付書等の確認書類を添付してください。"},"添付書類をプルダウンから選択してください。"]
[25,null,"厚生年金番号","○○○○",{"$f":"IF(D28>0,\"\",\"厚生年金番号を入力してください。\")","v":""},"健康保険の加入番号を記入してください。"]
[26,null,"　確認書類","書面（写）",{"$f":"IF(D29=\"経営事項審査通知書（写）\",\"経営事項審査通知書を添付してください。\",\"納付書等の確認書類を添付してください。\")","v":"納付書等の確認書類を添付してください。"},"添付書類をプルダウンから選択してください。"]
[27,null,"雇用保険番号","○○○○",{"$f":"IF(D30>0,\"\",\"雇用保険番号を入力してください。\")","v":""},"健康保険の加入番号を記入してください。"]
[28,null,"　確認書類","書面（写）",{"$f":"IF(D31=\"経営事項審査通知書（写）\",\"経営事項審査通知書を添付してください。\",\"納付書等の確認書類を添付してください。\")","v":"納付書等の確認書類を添付してください。"},"添付書類をプルダウンから選択してください。"]
[]
[]
[]
[]
[]
[]
[]
[null,null,null,null,null,"株式会社ソイルテクニカの支払基準による"]
[null,null,null,null,null,"成り行きによる"]
[]
[null,null,null,null,null,"書面（写）"]
[null,null,null,null,null,"経営事項審査通知書（写）"]

{"sheet":"入力シート","index":1,"n_rows":43,"n_cols":26,"rows_kept":43,"cut":false,"hidden":false,"merged":[[0,0,0,4],[2,0,4,0]]}
["標準見積書入力シート\n\n「入力項目」を入力し、「見積書表紙印刷ボタン」で印刷してください。\n尚、画面右側の出力イメージで、見積書（表紙）の表示状況の確認ができます。",null,null,null,null,null,null,"印刷イメージ（見積書表紙）",null,null,null,null,null,null,null,null,null,null,null,null,null,null,null,null,null," "]
["No.","項目①","項目②","入力項目","チェック","説明"]
[1,"基本情報","見積日（年）【西暦】",2019,{"$f":"IF(D3>0,\"\",\"見積日（年）を西暦で入力してください。\")","v":""},"見積日（年）を西暦で入力してください。"]
[null,null,"見積日（月）",null,{"$f":"IF(D4>0,\"\",\"見積日（月）を入力してください。\")","v":"見積日（月）を入力してください。"},"見積日（月）を入力してください。"]
[null,null,"見積日（日）",null,{"$f":"IF(D5>0,\"\",\"見積日（日）を入力してください。\")","v":"見積日（日）を入力してください。"},"見積日（日）を入力してください。"]
[2,"見積書提出先","JV名",null,{"$f":"IF(D6>0,\"\",\"JVの場合は入力してください。\")","v":"JVの場合は入力してください。"},"ＪＶ工事の場合のみＪＶ名を記入して下さい"]
[3,null,"JV構成",null,{"$f":"IF(D7>0,\"\",\"JVの場合に代表者等を入力してください。\")","v":"JVの場合に代表者等を入力してください。"},"ＪＶ工事の場合のみ代表者or構成員を選択してください。"]
[4,"見積書作成会社","取引先コード",null,{"$f":"IF(D8>0,\"\",\"取引先コードを取得済の場合は入力してください。\")","v":"取引先コードを取得済の場合は入力してください。"},"過去に取引実績のある場合は取引先コード（8桁）を入力してください。（新規の場合は不要です。）"]
[5,null,"会社名",null,{"$f":"IF(D9>0,\"\",\"見積作成会社を入力してください。\")","v":"見積作成会社を入力してください。"},"見積書の作成会社名を省略せずに入力してください。"]
[6,null,"代表者名",null,{"$f":"IF(D10>0,\"\",\"見積作成会社の代表者名を入力してください。\")","v":"見積作成会社の代表者名を入力してください。"},"見積提出者の代表者を入力してください。"]
[7,null,"郵便番号",null,{"$f":"IF(D11>0,\"\",\"郵便番号を入力してください。\")","v":"郵便番号を入力してください。"},"郵便番号を入力してください。"]
[8,null,"住所",null,{"$f":"IF(D12>0,\"\",\"住所を入力してください。\")","v":"住所を入力してください。"},"住所を入力してください。"]
[9,null,"電話番号",null,{"$f":"IF(D13>0,\"\",\"電話番号を入力してください。\")","v":"電話番号を入力してください。"},"本見積書に関する問い合わせ先の電話番号を入力してください。"]
[10,null,"担当者名",null,{"$f":"IF(D14>0,\"\",\"担当者名を入力してください。\")","v":"担当者名を入力してください。"},"本見積書に関する担当者を入力してください。"]
[11,null,"e-mail",null,{"$f":"IF(D15>0,\"\",\"担当者のe-mailを入力してください。\")","v":"担当者のe-mailを入力してください。"},"担当者のメールアドレスを入力してください。"]
[12,"工事情報","工事名",null,{"$f":"IF(D16>0,\"\",\"工事名を入力してください。\")","v":"工事名を入力してください。"},"工事名を入力してください。"]
[13,null,"工事場所",null,{"$f":"IF(D17>0,\"\",\"工事場所を入力してください。\")","v":"工事場所を入力してください。"},"工事場所の住所を市区町村まで入力してください。"]
[14,"見積情報","工期/納期（開始日）",null,{"$f":"IF(D18>0,IF(G18<=0,\"見積日との整合OK\",\"見積日より前の日付になっていますがよろしいですか？\"),\"工期/納期（開始日）を入力してください。\")","v":"工期/納期（開始日）を入力してください。"},"工期または納期開始予定日を西暦で入力してください。",{"$f":"出力シート!T3-D18","v":{"$error":"#VALUE!"}}]
[15,null,"工期/納期（終了日）",null,{"$f":"IF(D19>0,IF(G19>=0,\"見積開始日との整合OK\",\"工期/納期終了日が開始日より前の日付になっていますので確認してください。\"),\"工期/納期（終了日）を入力してください。\")","v":"工期/納期（終了日）を入力してください。"},"工期または納期終了予定日を西暦で入力してください。",{"$f":"D19-D18","v":0}]
[16,null,"見積有効期限",null,{"$f":"IF(D20>0,\"\",\"見積有効期限を入力してください。\")","v":"見積有効期限を入力してください。"},"見積有効期限を記入してください。"]
[17,null,"支払条件","株式会社ソイルテクニカの支払基準による",{"$f":"IF(D21>0,\"\",\"プルダウンから選択してください。\")","v":""},"プルダウンから選択してください。"]
[19,null,"見積金額",null,{"$f":"IF(D22>0,\"見積金額が内訳書の合計と合致していることを確認してください。\",\"税抜の見積金額を入力してください。\")","v":"税抜の見積金額を入力してください。"},"見積金額を入力してください。"]
[20,null,"消費税額",{"$f":"D22*0.08","v":0},"消費税額が適切な金額になっているか確認してください。","8%で自動計算されますが、見積書と相違している場合は修正してください。"]
[21,null,"合計",{"$f":"SUM(D22:D23)","v":0},"合計が見積書の金額と合致していることを確認してください。","見積金額と消費税の合計額が自動計算されます。"]
[22,null,"うち法定福利費",null,{"$f":"IF(D25>0,\"\",\"労務費が含まれている場合は、法定福利費を入力してください。\")","v":"労務費が含まれている場合は、法定福利費を入力してください。"},"見積金額に含まれる法定福利費の金額を、内数として入力してください。目安は労務費総額の15%となります。"]
[23,"社会保険","健康保険番号",null,{"$f":"IF(D26>0,\"\",\"健康保険番号を入力してください。\")","v":"健康保険番号を入力してください。"},"健康保険の加入番号を記入してください。"]
[24,null,"　確認書類",null,{"$f":"IF(D27=\"経営事項審査通知書（写）\",\"経営事項審査通知書を添付してください。\",\"納付書等の確認書類を添付してください。\")","v":"納付書等の確認書類を添付してください。"},"添付書類をプルダウンから選択してください。"]
[25,null,"厚生年金番号",null,{"$f":"IF(D28>0,\"\",\"厚生年金番号を入力してください。\")","v":"厚生年金番号を入力してください。"},"健康保険の加入番号を記入してください。"]
[26,null,"　確認書類",null,{"$f":"IF(D29=\"経営事項審査通知書（写）\",\"経営事項審査通知書を添付してください。\",\"納付書等の確認書類を添付してください。\")","v":"納付書等の確認書類を添付してください。"},"添付書類をプルダウンから選択してください。"]
[27,null,"雇用保険番号",null,{"$f":"IF(D30>0,\"\",\"雇用保険番号を入力してください。\")","v":"雇用保険番号を入力してください。"},"健康保険の加入番号を記入してください。"]
[28,null,"　確認書類",null,{"$f":"IF(D31=\"経営事項審査通知書（写）\",\"経営事項審査通知書を添付してください。\",\"納付書等の確認書類を添付してください。\")","v":"納付書等の確認書類を添付してください。"},"添付書類をプルダウンから選択してください。"]
[]
[]
[]
[]
[]
[]
[]
[null,null,null,null,null,"株式会社ソイルテクニカの支払基準による"]
[null,null,null,null,null,"成り行きによる"]
[]
[null,null,null,null,null,"書面（写）"]
[null,null,null,null,null,"経営事項審査通知書（写）"]

{"sheet":"出力シート","index":2,"n_rows":23,"n_cols":49,"rows_kept":23,"cut":false,"hidden":false,"merged":[[22,4,22,28],[23,4,23,28],[18,4,18,6],[18,11,18,14],[19,2,21,2],[19,4,19,5],[19,6,19,9],[19,13,19,25],[20,4,20,5],[20,6,20,9],[20,13,20,25],[21,4,21,5],[21,6,21,9],[21,13,21,25],[19,10,19,12],[20,10,20,12],[21,10,21,12],[16,4,16,6],[16,11,16,14],[16,15,16,23],[17,4,17,6],[17,11,17,14],[17,15,17,28],[10,11,11,14],[10,15,11,28],[13,4,13,28],[14,4,14,28],[15,4,15,6],[15,11,15,14],[15,15,15,21],[15,23,15,28],[2,7,2,14],[2,19,2,28],[4,2,4,9],[4,23,4,28],[5,13,5,18],[5,1,5,2],[8,2,8,8],[8,11,8,25],[8,27,8,28],[6,2,6,5],[9,11,9,14],[9,15,9,21],[9,22,9,23],[9,24,9,28],[6,11,6,28],[7,11,7,26]]}
[]
[]
[null,null,null,null,null,null,null,"見      積      書 ",null,null,null,null,null,null,null,null,null,null,null,{"$f":"IF(入力シート!D4>0,VALUE(CONCATENATE(入力シート!D3,\"/\",入力シート!D4,\"/\",入力シート!D5)),\"20●●年●月●日\")","v":"20●●年●月●日"}]
[]
[null,null,{"$f":"IF(入力シート!D6>0,入力シート!D6,\"\")","v":""},null,null,null,null,null,null,null,null,null,null,null,null,null,null,null,null,null,null,null,"取引先コード",{"$f":"IF(入力シート!D8>0,入力シート!D8,\"\")","v":""}]
[null,{"$f":"IF(入力シート!D7>0,入力シート!D7,\"\")","v":""},null,null,null,null,null,null,null,null,"請負者",null,"〒",{"$f":"IF(入力シート!D11>0,入力シート!D11,\"\")","v":""}]
[null,null,"株式会社ソイルテクニカ",null,null,null,null,"御中",null,null,null,{"$f":"IF(入力シート!D12>0,入力シート!D12,\"\")","v":""}]
[null,null,null,null,null,null,null,null,null,null,null,{"$f":"IF(入力シート!D9>0,入力シート!D9,\"\")","v":""}]
[null,null,"　　　 下記の通り見積り申し上げます。",null,null,null,null,null,null,null,null,{"$f":"IF(入力シート!D10>0,入力シート!D10,\"\")","v":""},null,null,null,null,null,null,null,null,null,null,null,null,null,null,"㊞"]
[null,null,null,null,null,null,null,null,null,null,null,"電話番号",null,null,null,{"$f":"IF(入力シート!D13>0,入力シート!D13,\"\")","v":""},null,null,null,null,null,null,"担当者",null,{"$f":"IF(入力シート!D14>0,入力シート!D14,\"\")","v":""}]
[null,null,null,null,null,null,null,null,null,null,null,"e-mail：",null,null,null,{"$f":"IF(入力シート!D15>0,入力シート!D15,\"\")","v":""}]
[]
[]
[null,null,"工事名",null,{"$f":"IF(入力シート!D16>0,入力シート!D16,\"\")","v":""}]
[null,null,"工事場所",null,{"$f":"IF(入力シート!D17>0,入力シート!D17,\"\")","v":""},null,null,null,null,null,null,null,null,null,null,null,null,null,null,null,null,null,null,null,null,null,null,null,null,null,null,null,null,null,null,null,null,null,null,null,null,null,null,null,null,null,null,null,"株式会社ソイルテクニカの支払基準による"]
[null,null,"見積金額",null,{"$f":"IF(入力シート!D22>0,入力シート!D22,\"\")","v":""},null,null,null,null,null,null,"工期",null,null,null,{"$f":"IF(入力シート!D18>0,入力シート!D18,\"\")","v":""},null,null,null,null,null,null,"～",{"$f":"IF(入力シート!D19>0,入力シート!D19,\"\")","v":""},null,null,null,null,null,null,null,null,null,null,null,null,null,null,null,null,null,null,null,null,null,null,null,null,"成り行きによる"]
[null,null,"消費税額",null,{"$f":"IF(入力シート!D23>0,入力シート!D23,\"\")","v":""},null,null,null,null,null,null,"見積有効期間",null,null,null,{"$f":"IF(入力シート!D20>0,入力シート!D20,\"\")","v":""},null,null,null,null,null,null,null,null,"まで"]
[null,null,"合計",null,{"$f":"IF(入力シート!D24>0,入力シート!D24,\"\")","v":""},null,null,null,null,null,null,"支払条件",null,null,null,{"$f":"IF(入力シート!D21>0,入力シート!D21,\"\")","v":"株式会社ソイルテクニカの支払基準による"},null,null,null,null,null,null,null,null,null,null,null,null,null,null,null,null,null,null,null,null,null,null,null,null,null,null,null,null,null,null,null,null,"書面（写）"]
[null,null,"うち法定福利費",null,{"$f":"IF(入力シート!D25>0,入力シート!D25,\"\")","v":""},null,null,null,null,null,null,null,null,null,null,null,null,null,null,null,null,null,null,null,null,null,null,null,null,null,null,null,null,null,null,null,null,null,null,null,null,null,null,null,null,null,null,null,"経営事項審査通知書（写）"]
[null,null,"社会保険\n加入状況",null,"健康保険番号：",null,{"$f":"IF(入力シート!D26>0,入力シート!D26,\"\")","v":""},null,null,null,"確認書類：",null,null,{"$f":"IF(入力シート!D27>0,入力シート!D27,\"\")","v":""}]
[null,null,null,null,"厚生年金番号：",null,{"$f":"IF(入力シート!D28>0,入力シート!D28,\"\")","v":""},null,null,null,"確認書類：",null,null,{"$f":"IF(入力シート!D29>0,入力シート!D29,\"\")","v":""}]
[null,null,null,null,"雇用保険番号：",null,{"$f":"IF(入力シート!D30>0,入力シート!D30,\"\")","v":""},null,null,null,"確認書類：",null,null,{"$f":"IF(入力シート!D31>0,入力シート!D31,\"\")","v":""}]
[null,null,"見積条件",null,"別紙明細通り"]

{"sheet":"参考明細書（地盤外注用）","index":3,"n_rows":49,"n_cols":13,"rows_kept":49,"cut":false,"hidden":false,"merged":[[24,5,24,7],[48,5,48,7]]}
[]
[null,"見 積 内 訳 明 細 書",null,null,null,null,null,null,null,"会社名",{"$f":"CONCATENATE(入力シート!D9)","v":""}]
[]
["見積名称 No.","種　　　目","規　　格　　・　　仕　　様","単位","数　量","単　価","金　　　額","備　　　考",null,"No.","見積名称",null,"単位"]
[3,{"$f":"IF(A5>0,VLOOKUP(A5,$J$5:$K$34,2,FALSE),\"\")","v":"施工機解体工"},null,"本",352,49000,{"$f":"IF(AND(E5=\"\",F5=\"\"),\"\",ROUNDDOWN(E5*F5,0))","v":17248000},null,null,1,"施工機整備工",null,"本"]
[5,"SAVE機打設工",null,null,null,null,{"$f":"IF(AND(E6=\"\",F6=\"\"),\"\",ROUNDDOWN(E6*F6,0))","v":""},null,null,2,"施工機組立工",null,"台"]
[6,"CI-CMC機打設工",null,null,null,null,{"$f":"IF(AND(E7=\"\",F7=\"\"),\"\",ROUNDDOWN(E7*F7,0))","v":""},null,null,3,"施工機解体工",null,"㎥"]
[null,"",null,null,null,null,"",null,null,4,"施工機組立解体工",null,"㎡"]
[null,"",null,null,null,null,"",null,null,5,"SAVE機打設工",null,"SET"]
[null,"",null,null,null,null,"",null,null,6,"CI-CMC機打設工",null,"回"]
[null,"",null,null,null,null,"",null,null,7,"CDM-LODIC施工",null,"組"]
[null,"",null,null,null,null,"",null,null,8,"パワーブレンダー工",null,"箇所"]
[null,"",null,null,null,null,"",null,null,9,"組立解体工"]
[null,"",null,null,null,null,"",null,null,10,"残土集積工"]
[null,"",null,null,null,null,"",null,null,11,"組立解体クレーン"]
[null,"",null,null,null,null,"",null,null,12,"施工機整備工（管理計器修理）"]
[null,"",null,null,null,null,"",null,null,13,"施工機組立解体工（管理計器）"]
[null,"",null,null,null,null,"",null,null,14,"機械修理工"]
[null,"",null,null,null,null,"",null,null,15,"事前ボーリング工"]
[null,"",null,null,null,null,"",null,null,16,"事後ボーリング工"]
[null,"",null,null,null,null,"",null,null,17,"事前事後ボーリング工"]
[null,"",null,null,null,null,"",null,null,18,"変位緩衝工"]
[null,"合計",null,null,null,null,{"$f":"SUM(G5:G22)","v":17248000},null,null,19,"事後出来形検査工"]
[null,null,null,null,null,null,null,null,null,20,"作業船運航及び打設工"]
[null,null,null,null,null,{"$f":"CONCATENATE(入力シート!D9)","v":""},null,null,null,21,"材料集積及び投入工"]
[null,"見 積 内 訳 明 細 書",null,null,null,null,null,null,null,22,"目杭設置工他"]
[null,null,null,null,null,null,null,null,null,23,"流量調整工"]
["見積名称 No.","種　　　目","規　　格　　・　　仕　　様","単位","数　量","単　価","金　　　額","備　　　考",null,24,"解体補助ﾗﾌﾀｰﾘｰｽ"]
[3,{"$f":"IF(A29>0,VLOOKUP(A29,$J$5:$K$34,2,FALSE),\"\")","v":"施工機解体工"},null,"本",352,49000,{"$f":"IF(AND(E29=\"\",F29=\"\"),\"\",ROUNDDOWN(E29*F29,0))","v":17248000},null,null,25,"攪拌翼修理他"]
[5,"SAVE機打設工",null,null,null,null,{"$f":"IF(AND(E30=\"\",F30=\"\"),\"\",ROUNDDOWN(E30*F30,0))","v":""},null,null,26]
[6,"CI-CMC機打設工",null,null,null,null,{"$f":"IF(AND(E31=\"\",F31=\"\"),\"\",ROUNDDOWN(E31*F31,0))","v":""},null,null,27]
[13,"施工機組立解体工（管理計器）",null,null,null,null,"",null,null,28]
[4,"施工機組立解体工",null,null,null,null,"",null,null,29]
[11,"組立解体クレーン",null,null,null,null,"",null,null,30]
[9,"組立解体工",null,null,null,null,""]
[null,"",null,null,null,null,""]
[null,"",null,null,null,null,""]
[null,"",null,null,null,null,""]
[null,"",null,null,null,null,""]
[null,"",null,null,null,null,""]
[null,"",null,null,null,null,""]
[null,"",null,null,null,null,""]
[null,"",null,null,null,null,""]
[null,"",null,null,null,null,""]
[null,"",null,null,null,null,""]
[null,"",null,null,null,null,""]
[null,"合計",null,null,null,null,{"$f":"SUM(G29:G46)","v":17248000}]
[]
[null,null,null,null,null,{"$f":"CONCATENATE(入力シート!D9)","v":""}]

{"sheet":"参考明細書","index":4,"n_rows":49,"n_cols":9,"rows_kept":49,"cut":false,"hidden":false,"merged":[[24,4,24,6],[48,4,48,6]]}
[]
["見 積 内 訳 明 細 書"]
[]
["種　　　目","規　　格　　・　　仕　　様","単位","数　量","単　価","金　　　額","備　　　考",null,"単位"]
[null,null,"本",352,49000,{"$f":"IF(AND(D5=\"\",E5=\"\"),\"\",ROUNDDOWN(D5*E5,0))","v":17248000},null,null,"㎥"]
[null,null,null,null,null,{"$f":"IF(AND(D6=\"\",E6=\"\"),\"\",ROUNDDOWN(D6*E6,0))","v":""},null,null,"㎡"]
[null,null,null,null,null,{"$f":"IF(AND(D7=\"\",E7=\"\"),\"\",ROUNDDOWN(D7*E7,0))","v":""},null,null,"掛㎡"]
[null,null,null,null,null,"",null,null,"台"]
[null,null,null,null,null,"",null,null,"SET"]
[null,null,null,null,null,"",null,null,"回"]
[null,null,null,null,null,"",null,null,"組"]
[null,null,null,null,null,"",null,null,"箇所"]
[null,null,null,null,null,""]
[null,null,null,null,null,""]
[null,null,null,null,null,""]
[null,null,null,null,null,""]
[null,null,null,null,null,""]
[null,null,null,null,null,""]
[null,null,null,null,null,""]
[null,null,null,null,null,""]
[null,null,null,null,null,""]
[null,null,null,null,null,""]
[null,null,null,null,null,""]
[null,null,null,null,null,""]
[null,null,null,null,{"$f":"CONCATENATE(入力シート!D9)","v":""}]
["見 積 内 訳 明 細 書"]
[]
["種　　　目","規　　格　　・　　仕　　様","単位","数　量","単　価","金　　　額","備　　　考"]
[null,null,"本",null,null,{"$f":"IF(AND(D29=\"\",E29=\"\"),\"\",ROUNDDOWN(D29*E29,0))","v":""}]
[null,null,null,null,null,{"$f":"IF(AND(D30=\"\",E30=\"\"),\"\",ROUNDDOWN(D30*E30,0))","v":""}]
[null,null,null,null,null,{"$f":"IF(AND(D31=\"\",E31=\"\"),\"\",ROUNDDOWN(D31*E31,0))","v":""}]
[null,null,null,null,null,""]
[null,null,null,null,null,""]
[null,null,null,null,null,""]
[null,null,null,null,null,""]
[null,null,null,null,null,""]
[null,null,null,null,null,""]
[null,null,null,null,null,""]
[null,null,null,null,null,""]
[null,null,null,null,null,""]
[null,null,null,null,null,""]
[null,null,null,null,null,""]
[null,null,null,null,null,""]
[null,null,null,null,null,""]
[null,null,null,null,null,""]
[null,null,null,null,null,""]
[null,null,null,null,null,""]
[null,null,null,null,null,""]
[null,null,null,null,{"$f":"CONCATENATE(入力シート!D9)","v":""}]